[Event "Titled Tuesday Blitz April 4 Early 2023"]
[White "Cherniaiev, Tykhon"]
[Black "Mayaud, Raphael"]
[WhiteFideId "14182360"]
[BlackFideId "627151"]
[WhiteElo "2450"]
[BlackElo "2191"]
[Result "1-0"]
[Round "01"]
[TimeControl "180+2"]
[Date "2023.04.04"]
[WhiteClock "0:00:03"]
[BlackClock "0:00:10"]

1. Nf3 {[%clk 0:03:00]}  d5 {[%clk 0:02:59]} 2. d4 {[%clk 0:03:00]}  Nf6 {[%clk 0:02:56]} 3. c4 {[%clk 0:02:58]}  c6 {[%clk 0:02:56]} 4. e3 {[%clk 0:02:58]}  g6 {[%clk 0:02:45]} 5. Nbd2 {[%clk 0:02:58]}  Bg7 {[%clk 0:02:44]} 6. Bd3 {[%clk 0:02:58]}  O-O {[%clk 0:02:43]} 7. O-O {[%clk 0:02:59]}  b6 {[%clk 0:02:41]} 8. e4 {[%clk 0:02:54]}  dxe4 {[%clk 0:02:41]} 9. Nxe4 {[%clk 0:02:55]}  Bb7 {[%clk 0:02:40]} 10. Re1 {[%clk 0:02:53]}  Nbd7 {[%clk 0:02:32]} 11. b3 {[%clk 0:02:53]}  Nxe4 {[%clk 0:02:31]} 12. Bxe4 {[%clk 0:02:53]}  Nf6 {[%clk 0:02:31]} 13. Bc2 {[%clk 0:02:53]}  e6 {[%clk 0:02:19]} 14. Ba3 {[%clk 0:02:52]}  Re8 {[%clk 0:02:18]} 15. Ne5 {[%clk 0:02:52]}  Nd7 {[%clk 0:02:15]} 16. Qf3 {[%clk 0:02:48]}  Nxe5 {[%clk 0:01:43]} 17. dxe5 {[%clk 0:02:49]}  Qg5 {[%clk 0:01:36]} 18. Bd6 {[%clk 0:02:43]}  Rad8 {[%clk 0:01:28]} 19. Rad1 {[%clk 0:02:42]}  Ba8 {[%clk 0:01:28]} 20. Be4 {[%clk 0:01:45]}  c5 {[%clk 0:01:26]} 21. Bxa8 {[%clk 0:01:44]}  Rxa8 {[%clk 0:01:26]} 22. Qb7 {[%clk 0:01:39]}  h5 {[%clk 0:00:55]} 23. Re3 {[%clk 0:01:37]}  h4 {[%clk 0:00:52]} 24. Rf3 {[%clk 0:01:30]}  f5 {[%clk 0:00:40]} 25. exf6 {[%clk 0:01:26]}  Bxf6 {[%clk 0:00:41]} 26. Bf4 {[%clk 0:01:23]}  Qg4 {[%clk 0:00:37]} 27. h3 {[%clk 0:01:22]}  Qh5 {[%clk 0:00:36]} 28. Rd7 {[%clk 0:01:06]}  Bd4 {[%clk 0:00:26]} 29. Be3 {[%clk 0:00:46]}  Bh8 {[%clk 0:00:22]} 30. Rff7 {[%clk 0:00:23]}  Rf8 {[%clk 0:00:23]} 31. Rxf8+ {[%clk 0:00:14]}  Rxf8 {[%clk 0:00:22]} 32. Qe4 {[%clk 0:00:15]}  Qf5 {[%clk 0:00:17]} 33. Qxh4 {[%clk 0:00:13]}  Bg7 {[%clk 0:00:15]} 34. Qe7 {[%clk 0:00:11]}  Qe5 {[%clk 0:00:15]} 35. g3 {[%clk 0:00:08]}  Qa1+ {[%clk 0:00:14]} 36. Kh2 {[%clk 0:00:08]}  Qe5 {[%clk 0:00:13]} 37. Qd6 {[%clk 0:00:07]}  Qf6 {[%clk 0:00:12]} 38. Rxa7 {[%clk 0:00:04]}  g5 {[%clk 0:00:12]} 39. Rd7 {[%clk 0:00:04]}  g4 {[%clk 0:00:12]} 40. Qe7 {[%clk 0:00:04]}  Qh6 {[%clk 0:00:10]} 41. Bxh6 {[%clk 0:00:03]} 1-0


[Site "https://www.chess.com"]

[Event "Titled Tuesday Blitz April 4 Early 2023"]
[White "Yanchenko, Roman"]
[Black "Kopczynski, Michal"]
[WhiteFideId "4137329"]
[BlackFideId "1124200"]
[WhiteElo "2491"]
[BlackElo "2212"]
[Result "1-0"]
[Round "01"]
[TimeControl "180+2"]
[Date "2023.04.04"]
[WhiteClock "0:02:13"]
[BlackClock "0:01:04"]

1. d4 {[%clk 0:03:00]}  Nf6 {[%clk 0:02:59]} 2. Nf3 {[%clk 0:02:57]}  g6 {[%clk 0:02:59]} 3. c4 {[%clk 0:02:58]}  Bg7 {[%clk 0:02:59]} 4. Nc3 {[%clk 0:02:59]}  d6 {[%clk 0:03:00]} 5. Bf4 {[%clk 0:02:59]}  O-O {[%clk 0:03:00]} 6. e3 {[%clk 0:03:00]}  Nfd7 {[%clk 0:03:01]} 7. Be2 {[%clk 0:03:00]}  Nc6 {[%clk 0:03:02]} 8. O-O {[%clk 0:02:59]}  e5 {[%clk 0:03:02]} 9. Bg3 {[%clk 0:03:00]}  f5 {[%clk 0:03:01]} 10. dxe5 {[%clk 0:03:00]}  Ndxe5 {[%clk 0:03:01]} 11. Nxe5 {[%clk 0:03:00]}  Nxe5 {[%clk 0:03:02]} 12. Rc1 {[%clk 0:02:59]}  Be6 {[%clk 0:03:01]} 13. b3 {[%clk 0:02:57]}  Kh8 {[%clk 0:03:00]} 14. Qd2 {[%clk 0:02:57]}  g5 {[%clk 0:02:48]} 15. Rfd1 {[%clk 0:02:55]}  Qf6 {[%clk 0:02:42]} 16. f4 {[%clk 0:02:51]}  Ng6 {[%clk 0:02:28]} 17. Nd5 {[%clk 0:02:50]}  Bxd5 {[%clk 0:02:27]} 18. Qxd5 {[%clk 0:02:41]}  Rae8 {[%clk 0:02:22]} 19. Bh5 {[%clk 0:02:34]}  Rxe3 {[%clk 0:02:17]} 20. Bxg6 {[%clk 0:02:34]}  Qxg6 {[%clk 0:02:10]} 21. Qxb7 {[%clk 0:02:34]}  gxf4 {[%clk 0:02:01]} 22. Bxf4 {[%clk 0:02:34]}  Re2 {[%clk 0:02:01]} 23. Rd2 {[%clk 0:02:18]}  Rxd2 {[%clk 0:01:40]} 24. Bxd2 {[%clk 0:02:19]}  f4 {[%clk 0:01:40]} 25. Qf3 {[%clk 0:02:18]}  Be5 {[%clk 0:01:25]} 26. Bc3 {[%clk 0:02:17]}  Re8 {[%clk 0:01:06]} 27. Re1 {[%clk 0:02:13]}  Bd4+ {[%clk 0:01:04]} 28. Bxd4+ {[%clk 0:02:13]} 1-0


[Site "https://www.chess.com"]

[Event "Titled Tuesday Blitz April 4 Early 2023"]
[White "Bronstein, Or"]
[Black "Kukreja, Sankalp"]
[WhiteFideId "2815770"]
[BlackFideId "45027676"]
[WhiteElo "2356"]
[BlackElo "2126"]
[Result "1-0"]
[Round "01"]
[TimeControl "180+2"]
[Date "2023.04.04"]
[WhiteClock "0:00:44"]
[BlackClock "0:00:17"]

1. c4 {[%clk 0:03:00]}  e5 {[%clk 0:02:57]} 2. Nc3 {[%clk 0:03:00]}  Nf6 {[%clk 0:02:57]} 3. Nf3 {[%clk 0:02:59]}  Nc6 {[%clk 0:02:55]} 4. e3 {[%clk 0:02:59]}  Bb4 {[%clk 0:02:47]} 5. Qc2 {[%clk 0:02:59]}  Bxc3 {[%clk 0:02:45]} 6. bxc3 {[%clk 0:02:59]}  d6 {[%clk 0:02:44]} 7. d3 {[%clk 0:02:58]}  Bf5 {[%clk 0:02:44]} 8. e4 {[%clk 0:02:58]}  Bg6 {[%clk 0:02:45]} 9. g3 {[%clk 0:02:56]}  O-O {[%clk 0:02:44]} 10. Nh4 {[%clk 0:02:56]}  Qd7 {[%clk 0:02:44]} 11. Bg2 {[%clk 0:02:52]}  Rae8 {[%clk 0:02:35]} 12. O-O {[%clk 0:02:52]}  Ne7 {[%clk 0:02:27]} 13. a4 {[%clk 0:02:50]}  c6 {[%clk 0:02:24]} 14. a5 {[%clk 0:02:50]}  d5 {[%clk 0:02:22]} 15. cxd5 {[%clk 0:02:49]}  cxd5 {[%clk 0:02:22]} 16. Nxg6 {[%clk 0:02:48]}  hxg6 {[%clk 0:02:20]} 17. exd5 {[%clk 0:02:47]}  Nfxd5 {[%clk 0:02:16]} 18. Rb1 {[%clk 0:02:39]}  Rc8 {[%clk 0:02:13]} 19. c4 {[%clk 0:02:39]}  Rc7 {[%clk 0:01:22]} 20. Qb2 {[%clk 0:02:29]}  Nf6 {[%clk 0:01:17]} 21. Qxe5 {[%clk 0:02:29]}  Nc6 {[%clk 0:01:10]} 22. Qb5 {[%clk 0:01:48]}  Qxd3 {[%clk 0:00:59]} 23. Bf4 {[%clk 0:01:42]}  Nd4 {[%clk 0:00:55]} 24. Qe5 {[%clk 0:01:31]}  Rxc4 {[%clk 0:00:24]} 25. Kh1 {[%clk 0:01:15]}  Re8 {[%clk 0:00:19]} 26. Qd6 {[%clk 0:01:14]}  Qc3 {[%clk 0:00:19]} 27. Rxb7 {[%clk 0:01:03]}  Ne2 {[%clk 0:00:17]} 28. Bd2 {[%clk 0:00:53]}  Qd4 {[%clk 0:00:18]} 29. Qxd4 {[%clk 0:00:49]}  Rxd4 {[%clk 0:00:19]} 30. Be3 {[%clk 0:00:48]}  Ra4 {[%clk 0:00:19]} 31. Rxa7 {[%clk 0:00:48]}  Ng4 {[%clk 0:00:19]} 32. Bb6 {[%clk 0:00:46]}  Ra1 {[%clk 0:00:17]} 33. Rxa1 {[%clk 0:00:44]} 1-0


[Site "https://www.chess.com"]

[Event "Titled Tuesday Blitz April 4 Early 2023"]
[White "Iskusnyh, Sergei"]
[Black "ArtemDyachuk"]
[WhiteFideId "4120027"]
[WhiteElo "2492"]
[BlackElo "2407"]
[Result "1-0"]
[Round "01"]
[TimeControl "180+2"]
[Date "2023.04.04"]
[WhiteClock "0:00:29"]
[BlackClock "0:00:02"]

1. d4 {[%clk 0:02:57]}  Nf6 {[%clk 0:02:59]} 2. c4 {[%clk 0:02:56]}  c5 {[%clk 0:02:56]} 3. d5 {[%clk 0:02:56]}  e6 {[%clk 0:02:56]} 4. Nc3 {[%clk 0:02:56]}  exd5 {[%clk 0:02:55]} 5. cxd5 {[%clk 0:02:57]}  d6 {[%clk 0:02:55]} 6. Nf3 {[%clk 0:02:55]}  g6 {[%clk 0:02:54]} 7. Nd2 {[%clk 0:02:52]}  Bg7 {[%clk 0:02:53]} 8. e4 {[%clk 0:02:53]}  O-O {[%clk 0:02:52]} 9. Be2 {[%clk 0:02:53]}  Re8 {[%clk 0:02:46]} 10. O-O {[%clk 0:02:50]}  Na6 {[%clk 0:02:45]} 11. a4 {[%clk 0:02:49]}  Nb4 {[%clk 0:02:44]} 12. Kh1 {[%clk 0:02:44]}  b6 {[%clk 0:02:30]} 13. f3 {[%clk 0:02:43]}  Nh5 {[%clk 0:02:27]} 14. Nc4 {[%clk 0:02:40]}  Qh4 {[%clk 0:02:21]} 15. Kg1 {[%clk 0:02:14]}  Ba6 {[%clk 0:01:53]} 16. Nb5 {[%clk 0:02:11]}  Bxb5 {[%clk 0:01:44]} 17. axb5 {[%clk 0:02:11]}  f5 {[%clk 0:01:41]} 18. Be3 {[%clk 0:02:03]}  fxe4 {[%clk 0:01:31]} 19. f4 {[%clk 0:02:03]}  Nd3 {[%clk 0:00:51]} 20. Bxh5 {[%clk 0:01:35]}  Qxh5 {[%clk 0:00:39]} 21. Qxh5 {[%clk 0:01:33]}  gxh5 {[%clk 0:00:40]} 22. Nxd6 {[%clk 0:01:33]}  Bxb2 {[%clk 0:00:38]} 23. Nxe8 {[%clk 0:01:25]}  Rxe8 {[%clk 0:00:21]} 24. Ra2 {[%clk 0:01:08]}  Bd4 {[%clk 0:00:19]} 25. Re2 {[%clk 0:01:05]}  Kf7 {[%clk 0:00:17]} 26. g3 {[%clk 0:01:01]}  Kf6 {[%clk 0:00:16]} 27. Kg2 {[%clk 0:01:00]}  Kf5 {[%clk 0:00:14]} 28. Rd1 {[%clk 0:01:00]}  Rd8 {[%clk 0:00:13]} 29. Bxd4 {[%clk 0:00:46]}  cxd4 {[%clk 0:00:13]} 30. Rxd3 {[%clk 0:00:46]}  exd3 {[%clk 0:00:13]} 31. Re5+ {[%clk 0:00:47]}  Kf6 {[%clk 0:00:11]} 32. Kf2 {[%clk 0:00:46]}  Rc8 {[%clk 0:00:11]} 33. d6 {[%clk 0:00:41]}  Rd8 {[%clk 0:00:06]} 34. Ke1 {[%clk 0:00:39]}  Rxd6 {[%clk 0:00:05]} 35. Kd2 {[%clk 0:00:39]}  Rd7 {[%clk 0:00:03]} 36. Kxd3 {[%clk 0:00:37]}  h4 {[%clk 0:00:03]} 37. g4 {[%clk 0:00:36]}  h6 {[%clk 0:00:03]} 38. Rh5 {[%clk 0:00:34]}  Kg7 {[%clk 0:00:03]} 39. Rxh4 {[%clk 0:00:33]}  Rd5 {[%clk 0:00:03]} 40. Rh5 {[%clk 0:00:31]}  Rxh5 {[%clk 0:00:03]} 41. gxh5 {[%clk 0:00:32]}  Kf6 {[%clk 0:00:04]} 42. Kxd4 {[%clk 0:00:32]}  Kf5 {[%clk 0:00:04]} 43. Ke3 {[%clk 0:00:32]}  Kf6 {[%clk 0:00:03]} 44. Ke4 {[%clk 0:00:32]}  Ke6 {[%clk 0:00:03]} 45. f5+ {[%clk 0:00:32]}  Kf6 {[%clk 0:00:03]} 46. Kf4 {[%clk 0:00:32]}  Kf7 {[%clk 0:00:02]} 47. Ke5 {[%clk 0:00:30]}  Ke7 {[%clk 0:00:02]} 48. f6+ {[%clk 0:00:29]}  Kf8 {[%clk 0:00:02]} 49. Ke6 {[%clk 0:00:29]} 1-0


[Site "https://www.chess.com"]

[Event "Titled Tuesday Blitz April 4 Early 2023"]
[White "Schmakel, Sam"]
[Black "a-z30"]
[WhiteFideId "2039311"]
[WhiteElo "2356"]
[BlackElo "2407"]
[Result "1-0"]
[Round "01"]
[TimeControl "180+2"]
[Date "2023.04.04"]
[WhiteClock "0:00:20"]
[BlackClock "0:00:15"]

1. Nf3 {[%clk 0:02:59]}  d6 {[%clk 0:03:00]} 2. d4 {[%clk 0:02:59]}  Nf6 {[%clk 0:03:01]} 3. g3 {[%clk 0:02:58]}  g6 {[%clk 0:03:02]} 4. Bg2 {[%clk 0:02:58]}  Bg7 {[%clk 0:03:03]} 5. O-O {[%clk 0:02:59]}  O-O {[%clk 0:03:03]} 6. Nc3 {[%clk 0:02:59]}  c6 {[%clk 0:03:04]} 7. a4 {[%clk 0:02:59]}  a5 {[%clk 0:03:02]} 8. e4 {[%clk 0:02:59]}  Na6 {[%clk 0:03:02]} 9. h3 {[%clk 0:02:58]}  Nb4 {[%clk 0:03:01]} 10. Qe2 {[%clk 0:02:58]}  Qc7 {[%clk 0:02:54]} 11. e5 {[%clk 0:02:52]}  Nfd5 {[%clk 0:02:45]} 12. Ne4 {[%clk 0:02:09]}  b6 {[%clk 0:01:45]} 13. Re1 {[%clk 0:01:59]}  Ba6 {[%clk 0:01:44]} 14. Qd2 {[%clk 0:02:00]}  Rad8 {[%clk 0:01:34]} 15. exd6 {[%clk 0:01:58]}  exd6 {[%clk 0:01:30]} 16. b3 {[%clk 0:01:48]}  Rfe8 {[%clk 0:01:29]} 17. Ba3 {[%clk 0:01:46]}  h6 {[%clk 0:01:00]} 18. Nc3 {[%clk 0:00:45]}  Nxc3 {[%clk 0:00:55]} 19. Qxc3 {[%clk 0:00:46]}  c5 {[%clk 0:00:56]} 20. Qd2 {[%clk 0:00:43]}  cxd4 {[%clk 0:00:43]} 21. Bxb4 {[%clk 0:00:43]}  axb4 {[%clk 0:00:41]} 22. Nxd4 {[%clk 0:00:38]}  Bxd4 {[%clk 0:00:31]} 23. Qxd4 {[%clk 0:00:39]}  Qxc2 {[%clk 0:00:31]} 24. Qxb6 {[%clk 0:00:36]}  Bc8 {[%clk 0:00:22]} 25. Qxb4 {[%clk 0:00:33]}  Be6 {[%clk 0:00:18]} 26. a5 {[%clk 0:00:28]}  Qxb3 {[%clk 0:00:16]} 27. Qxb3 {[%clk 0:00:27]}  Bxb3 {[%clk 0:00:17]} 28. Rxe8+ {[%clk 0:00:19]}  Rxe8 {[%clk 0:00:18]} 29. Bc6 {[%clk 0:00:19]}  Rc8 {[%clk 0:00:15]} 30. Bb7 {[%clk 0:00:20]} 1-0


[Site "https://www.chess.com"]

[Event "Titled Tuesday Blitz April 4 Early 2023"]
[White "Mazurkiewicz, Michal"]
[Black "Kowalczyk, Pawel"]
[WhiteFideId "1124943"]
[BlackFideId "1130641"]
[WhiteElo "2054"]
[BlackElo "2324"]
[Result "0-1"]
[Round "01"]
[TimeControl "180+2"]
[Date "2023.04.04"]
[WhiteClock "0:00:12"]
[BlackClock "0:00:44"]

1. e4 {[%clk 0:03:00]}  c5 {[%clk 0:02:56]} 2. Nf3 {[%clk 0:03:00]}  e6 {[%clk 0:02:55]} 3. d3 {[%clk 0:03:00]}  a6 {[%clk 0:02:52]} 4. g3 {[%clk 0:03:00]}  b5 {[%clk 0:02:52]} 5. Bg2 {[%clk 0:03:00]}  Bb7 {[%clk 0:02:52]} 6. O-O {[%clk 0:03:01]}  d6 {[%clk 0:02:52]} 7. Re1 {[%clk 0:03:01]}  Nd7 {[%clk 0:02:52]} 8. c3 {[%clk 0:03:01]}  Ngf6 {[%clk 0:02:45]} 9. Nbd2 {[%clk 0:02:50]}  Be7 {[%clk 0:02:45]} 10. d4 {[%clk 0:02:50]}  O-O {[%clk 0:02:43]} 11. e5 {[%clk 0:02:49]}  dxe5 {[%clk 0:02:43]} 12. dxe5 {[%clk 0:02:49]}  Nd5 {[%clk 0:02:43]} 13. Ne4 {[%clk 0:02:50]}  Qc7 {[%clk 0:02:42]} 14. h4 {[%clk 0:02:24]}  Rad8 {[%clk 0:02:35]} 15. Bg5 {[%clk 0:02:07]}  Bxg5 {[%clk 0:02:28]} 16. hxg5 {[%clk 0:01:45]}  Nxe5 {[%clk 0:02:12]} 17. Nxe5 {[%clk 0:01:45]}  Qxe5 {[%clk 0:02:12]} 18. Nxc5 {[%clk 0:01:45]}  Qc7 {[%clk 0:02:10]} 19. Nxb7 {[%clk 0:01:37]}  Qxb7 {[%clk 0:02:11]} 20. Qb3 {[%clk 0:01:23]}  Qb6 {[%clk 0:02:09]} 21. Rad1 {[%clk 0:01:22]}  Ne7 {[%clk 0:02:04]} 22. a4 {[%clk 0:01:19]}  Qc5 {[%clk 0:01:58]} 23. axb5 {[%clk 0:01:18]}  axb5 {[%clk 0:01:59]} 24. Bf1 {[%clk 0:01:10]}  Rb8 {[%clk 0:01:54]} 25. Qb4 {[%clk 0:00:50]}  Qxg5 {[%clk 0:01:52]} 26. Bg2 {[%clk 0:00:37]}  Ng6 {[%clk 0:01:45]} 27. Rd7 {[%clk 0:00:28]}  h5 {[%clk 0:01:41]} 28. Re4 {[%clk 0:00:25]}  Rfd8 {[%clk 0:01:35]} 29. Red4 {[%clk 0:00:25]}  Rxd7 {[%clk 0:01:35]} 30. Rxd7 {[%clk 0:00:26]}  h4 {[%clk 0:01:34]} 31. Qd6 {[%clk 0:00:26]}  Rf8 {[%clk 0:01:31]} 32. Rb7 {[%clk 0:00:20]}  hxg3 {[%clk 0:01:30]} 33. Qxg3 {[%clk 0:00:21]}  Qc1+ {[%clk 0:01:28]} 34. Kh2 {[%clk 0:00:21]}  Qxb2 {[%clk 0:01:28]} 35. Be4 {[%clk 0:00:21]}  Nh8 {[%clk 0:01:12]} 36. Qh4 {[%clk 0:00:14]}  f5 {[%clk 0:01:03]} 37. Qg3 {[%clk 0:00:14]}  Nf7 {[%clk 0:00:57]} 38. Bc6 {[%clk 0:00:14]}  Rc8 {[%clk 0:00:53]} 39. Bxb5 {[%clk 0:00:11]}  Qxc3 {[%clk 0:00:51]} 40. Bd7 {[%clk 0:00:12]}  Qxg3+ {[%clk 0:00:48]} 41. Kxg3 {[%clk 0:00:12]}  Rc3+ {[%clk 0:00:48]} 42. Kf4 {[%clk 0:00:12]}  g5# {[%clk 0:00:44]} 0-1


[Site "https://www.chess.com"]

[Event "Titled Tuesday Blitz April 4 Early 2023"]
[White "Salemgareev, Tagir"]
[Black "Rizzo, Tobias"]
[WhiteFideId "24199052"]
[BlackFideId "30942691"]
[WhiteElo "2360"]
[BlackElo "2407"]
[Result "0-1"]
[Round "01"]
[TimeControl "180+2"]
[Date "2023.04.04"]
[WhiteClock "0:00:14"]
[BlackClock "0:00:22"]

1. Nf3 {[%clk 0:02:58]}  Nf6 {[%clk 0:02:59]} 2. g3 {[%clk 0:02:58]}  g6 {[%clk 0:02:59]} 3. Bg2 {[%clk 0:02:58]}  Bg7 {[%clk 0:02:59]} 4. O-O {[%clk 0:02:58]}  d5 {[%clk 0:02:59]} 5. c4 {[%clk 0:02:56]}  c6 {[%clk 0:02:59]} 6. d4 {[%clk 0:02:55]}  O-O {[%clk 0:02:59]} 7. Nbd2 {[%clk 0:02:55]}  h6 {[%clk 0:02:52]} 8. b3 {[%clk 0:02:54]}  Be6 {[%clk 0:02:51]} 9. Bb2 {[%clk 0:02:54]}  Na6 {[%clk 0:02:47]} 10. e3 {[%clk 0:02:53]}  Rc8 {[%clk 0:02:43]} 11. Qe2 {[%clk 0:02:51]}  c5 {[%clk 0:02:42]} 12. Rfd1 {[%clk 0:02:50]}  Qc7 {[%clk 0:02:37]} 13. Rac1 {[%clk 0:02:48]}  Rfd8 {[%clk 0:02:32]} 14. e4 {[%clk 0:02:07]}  dxe4 {[%clk 0:02:28]} 15. Nxe4 {[%clk 0:02:07]}  Nxe4 {[%clk 0:02:18]} 16. Qxe4 {[%clk 0:02:08]}  Bf5 {[%clk 0:02:18]} 17. Qe2 {[%clk 0:02:07]}  cxd4 {[%clk 0:02:18]} 18. Nxd4 {[%clk 0:02:05]}  Bxd4 {[%clk 0:01:57]} 19. Bxd4 {[%clk 0:01:59]}  Nc5 {[%clk 0:01:56]} 20. Qe3 {[%clk 0:01:42]}  h5 {[%clk 0:01:41]} 21. Ba1 {[%clk 0:01:16]}  Nd3 {[%clk 0:01:32]} 22. Rc3 {[%clk 0:01:09]}  Nb4 {[%clk 0:01:12]} 23. Rxd8+ {[%clk 0:00:51]}  Rxd8 {[%clk 0:01:13]} 24. Rc1 {[%clk 0:00:50]}  Nc2 {[%clk 0:01:03]} 25. Rxc2 {[%clk 0:00:34]}  Bxc2 {[%clk 0:01:02]} 26. Qc3 {[%clk 0:00:34]}  Rd1+ {[%clk 0:00:53]} 27. Bf1 {[%clk 0:00:34]}  e5 {[%clk 0:00:46]} 28. Qxc2 {[%clk 0:00:31]}  Rxa1 {[%clk 0:00:47]} 29. Qd2 {[%clk 0:00:30]}  Qc5 {[%clk 0:00:39]} 30. h4 {[%clk 0:00:16]}  Qd4 {[%clk 0:00:38]} 31. Qe2 {[%clk 0:00:14]}  Qd1 {[%clk 0:00:22]} 0-1


[Site "https://www.chess.com"]

[Event "Titled Tuesday Blitz April 4 Early 2023"]
[White "Nouri, Alekhine"]
[Black "Iljin, Timofey"]
[WhiteFideId "5216184"]
[BlackFideId "14110180"]
[WhiteElo "2151"]
[BlackElo "2382"]
[Result "0-1"]
[Round "01"]
[TimeControl "180+2"]
[Date "2023.04.04"]
[WhiteClock "0:01:08"]
[BlackClock "0:00:14"]

1. e4 {[%clk 0:03:00]}  e5 {[%clk 0:03:00]} 2. Nf3 {[%clk 0:03:00]}  Nc6 {[%clk 0:03:00]} 3. d4 {[%clk 0:02:59]}  exd4 {[%clk 0:03:01]} 4. Nxd4 {[%clk 0:02:58]}  Nf6 {[%clk 0:03:01]} 5. Nxc6 {[%clk 0:02:58]}  bxc6 {[%clk 0:03:01]} 6. Nd2 {[%clk 0:02:59]}  d5 {[%clk 0:03:00]} 7. exd5 {[%clk 0:02:59]}  cxd5 {[%clk 0:03:01]} 8. Bb5+ {[%clk 0:03:00]}  Bd7 {[%clk 0:02:58]} 9. Bxd7+ {[%clk 0:02:59]}  Qxd7 {[%clk 0:02:59]} 10. O-O {[%clk 0:03:00]}  Be7 {[%clk 0:02:59]} 11. Re1 {[%clk 0:03:00]}  O-O {[%clk 0:02:59]} 12. b3 {[%clk 0:03:00]}  c6 {[%clk 0:02:40]} 13. Bb2 {[%clk 0:03:00]}  Rfe8 {[%clk 0:02:40]} 14. Nf3 {[%clk 0:02:56]}  c5 {[%clk 0:02:23]} 15. Qd3 {[%clk 0:02:51]}  d4 {[%clk 0:02:22]} 16. Rad1 {[%clk 0:02:23]}  Qg4 {[%clk 0:01:35]} 17. c3 {[%clk 0:02:18]}  Nd5 {[%clk 0:01:24]} 18. Ne5 {[%clk 0:02:12]}  Qg5 {[%clk 0:01:10]} 19. cxd4 {[%clk 0:02:10]}  cxd4 {[%clk 0:01:07]} 20. Qf3 {[%clk 0:01:42]}  Nf6 {[%clk 0:00:45]} 21. Rxd4 {[%clk 0:01:26]}  Bc5 {[%clk 0:00:37]} 22. Rdd1 {[%clk 0:01:25]}  h6 {[%clk 0:00:29]} 23. h3 {[%clk 0:01:25]}  Rad8 {[%clk 0:00:29]} 24. Rxd8 {[%clk 0:01:23]}  Rxd8 {[%clk 0:00:29]} 25. Nd3 {[%clk 0:01:23]}  Bd4 {[%clk 0:00:25]} 26. Bxd4 {[%clk 0:01:13]}  Rxd4 {[%clk 0:00:26]} 27. Ne5 {[%clk 0:01:13]}  Rd5 {[%clk 0:00:18]} 28. Ng4 {[%clk 0:01:09]}  Nxg4 {[%clk 0:00:15]} 29. Qxd5 {[%clk 0:01:08]}  Qxd5 {[%clk 0:00:14]} 0-1


[Site "https://www.chess.com"]

[Event "Titled Tuesday Blitz April 4 Early 2023"]
[White "Mazibuko, Khanya"]
[Black "Bashirli, Nail"]
[WhiteFideId "14321041"]
[BlackFideId "13406809"]
[WhiteElo "1873"]
[BlackElo "2322"]
[Result "0-1"]
[Round "01"]
[TimeControl "180+2"]
[Date "2023.04.04"]
[WhiteClock "0:00:11"]
[BlackClock "0:00:09"]

1. e4 {[%clk 0:02:59]}  Nf6 {[%clk 0:02:59]} 2. e5 {[%clk 0:02:58]}  Nd5 {[%clk 0:02:53]} 3. d4 {[%clk 0:02:57]}  d6 {[%clk 0:02:47]} 4. exd6 {[%clk 0:02:57]}  exd6 {[%clk 0:02:46]} 5. c4 {[%clk 0:02:55]}  Nb6 {[%clk 0:02:40]} 6. Nc3 {[%clk 0:02:54]}  Be7 {[%clk 0:02:36]} 7. Bd3 {[%clk 0:02:54]}  O-O {[%clk 0:02:32]} 8. Nge2 {[%clk 0:02:54]}  Bf6 {[%clk 0:02:28]} 9. O-O {[%clk 0:02:54]}  Re8 {[%clk 0:02:18]} 10. b3 {[%clk 0:02:33]}  Nc6 {[%clk 0:02:14]} 11. Be3 {[%clk 0:02:34]}  Bg4 {[%clk 0:01:55]} 12. Qd2 {[%clk 0:02:31]}  d5 {[%clk 0:01:40]} 13. c5 {[%clk 0:02:17]}  Nc8 {[%clk 0:01:21]} 14. h3 {[%clk 0:02:14]}  Bxe2 {[%clk 0:01:18]} 15. Nxe2 {[%clk 0:02:14]}  N8e7 {[%clk 0:01:18]} 16. b4 {[%clk 0:02:09]}  a6 {[%clk 0:01:15]} 17. Rab1 {[%clk 0:02:05]}  Qd7 {[%clk 0:01:13]} 18. g4 {[%clk 0:01:59]}  Ng6 {[%clk 0:00:52]} 19. Bxg6 {[%clk 0:01:50]}  hxg6 {[%clk 0:00:48]} 20. Rfe1 {[%clk 0:01:43]}  Bh4 {[%clk 0:00:44]} 21. Nf4 {[%clk 0:01:30]}  Re4 {[%clk 0:00:42]} 22. Ng2 {[%clk 0:01:24]}  g5 {[%clk 0:00:41]} 23. Red1 {[%clk 0:01:13]}  Rae8 {[%clk 0:00:40]} 24. a4 {[%clk 0:00:54]}  b5 {[%clk 0:00:30]} 25. cxb6 {[%clk 0:00:50]}  cxb6 {[%clk 0:00:30]} 26. b5 {[%clk 0:00:46]}  axb5 {[%clk 0:00:30]} 27. Rxb5 {[%clk 0:00:47]}  Na5 {[%clk 0:00:30]} 28. Nxh4 {[%clk 0:00:42]}  Nc4 {[%clk 0:00:23]} 29. Qa2 {[%clk 0:00:36]}  gxh4 {[%clk 0:00:19]} 30. Re1 {[%clk 0:00:23]}  Qc6 {[%clk 0:00:13]} 31. Qc2 {[%clk 0:00:20]}  Qd7 {[%clk 0:00:11]} 32. Qa2 {[%clk 0:00:20]}  Qd6 {[%clk 0:00:10]} 33. Rbb1 {[%clk 0:00:14]}  Nxe3 {[%clk 0:00:10]} 34. fxe3 {[%clk 0:00:14]}  Rxe3 {[%clk 0:00:11]} 35. Qf2 {[%clk 0:00:12]}  Rxe1+ {[%clk 0:00:10]} 36. Rxe1 {[%clk 0:00:13]}  Re4 {[%clk 0:00:11]} 37. Qxh4 {[%clk 0:00:13]}  f6 {[%clk 0:00:09]} 38. Rxe4 {[%clk 0:00:12]}  dxe4 {[%clk 0:00:09]} 39. Qf2 {[%clk 0:00:12]}  Qb4 {[%clk 0:00:10]} 40. Qd2 {[%clk 0:00:11]}  Qxd2 {[%clk 0:00:09]} 0-1


[Site "https://www.chess.com"]